bitfinex-derivatives/quotes_ETHF0:USTF0_20260308
["timestamp","ask_amount","ask_price","bid_price","bid_amount"]
[1772941194254,5.35446589,1948.4,1948.0,9.77614229]
[1772941195449,5.90876769,1948.5,1948.0,9.77614229]
[1772941195651,5.90876769,1948.3,1948.0,9.77614229]
[1772941195853,0.21741706,1948.6,1948.0,9.77614229]
[1772941196150,5.87958887,1948.4,1948.0,9.77614229]
[1772941196552,5.87958887,1948.6,1948.0,9.77614229]
[1772941196753,10.91570199,1948.7,1948.0,9.77614229]
[1772941197150,5.44319912,1948.6,1948.0,9.77614229]
[1772941199458,17.4219025,1948.6,1948.0,9.77614229]
[1772941199854,11.97870338,1948.6,1948.0,9.77614229]
[1772941200054,5.45493061,1948.5,1948.0,9.77614229]
[1772941200555,17.43363399,1948.5,1948.0,9.77614229]
[1772941200956,11.97870338,1948.5,1948.0,9.77614229]
[1772941201156,5.35289618,1948.4,1948.0,9.77614229]
[1772941202358,0.033,1948.5,1948.0,9.77614229]
[1772941202659,11.11346975,1948.6,1948.0,9.77614229]
[1772941203062,5.42408117,1948.5,1948.0,9.77614229]
[1772941205458,16.45381415,1948.5,1948.0,9.77614229]
[1772941205756,11.02973298,1948.4,1947.9,11.00683561]
[1772941206156,11.02973298,1948.3,1947.9,11.00683561]
[1772941206358,13.213,1948.7,1947.9,11.00683561]
[1772941206558,11.02973298,1948.6,1947.9,11.00683561]
[1772941206762,11.02973298,1948.5,1947.9,11.01066641]
[1772941207161,15.31653539,1948.4,1947.9,11.01066641]
[1772941207463,11.02973298,1948.4,1947.9,11.01066641]
[1772941207861,5.39245421,1948.3,1947.9,11.01066641]
[1772941210767,16.42218719,1948.3,1947.9,11.01066641]
[1772941211968,5.39245421,1948.3,1947.9,11.01066641]
[1772941214067,16.42218719,1948.3,1947.9,11.01066641]
[1772941215167,5.39245421,1948.3,1947.9,11.01066641]
[1772941215369,11.02973298,1948.2,1947.5,11.00683561]
[1772941215764,11.02973298,1948.0,1947.4,11.00683561]
[1772941216168,11.02973298,1947.8,1947.4,11.00683561]
[1772941216374,11.02973298,1947.8,1947.4,11.01253125]
[1772941216565,5.72448742,1947.7,1947.4,11.01253125]
[1772941216767,11.02973298,1948.5,1947.4,12.44636752]
[1772941216974,11.02973298,1948.3,1947.4,12.44636752]
[1772941217170,3.64282411,1947.9,1947.4,12.44636752]
[1772941217465,11.02973298,1948.2,1947.4,12.44636752]
[1772941217862,5.70634859,1947.9,1947.4,12.44636752]
[1772941218071,4.63165241,1948.1,1947.4,12.44636752]
[1772941218268,11.02973298,1948.2,1947.4,12.44636752]
[1772941218468,16.46520307,1948.1,1947.4,12.44636752]
[1772941218862,11.02973298,1948.1,1947.4,12.44636752]
[1772941219067,5.37789618,1948.0,1947.4,12.44636752]
[1772941220477,16.40762916,1948.0,1947.4,12.44636752]
[1772941220877,11.02973298,1948.0,1947.4,12.44636752]
[1772941221072,5.60163337,1947.9,1947.4,12.44636752]
[1772941221980,11.02973298,1947.8,1947.4,0.00569564]
[1772941222181,11.02973298,1947.8,1947.3,10.35984631]
[1772941222481,11.02973298,1947.6,1947.3,10.35984631]
[1772941223075,11.02973298,1947.6,1947.3,10.36593755]
[1772941223275,11.02973298,1947.6,1947.3,9.71667466]
[1772941224478,11.02973298,1947.6,1947.3,0.00609124]
[1772941224679,16.40034902,1947.5,1947.3,0.00609124]
[1772941224980,11.02973298,1947.5,1947.3,0.00609124]
[1772941225281,11.02973298,1947.8,1947.3,11.01292685]
[1772941225677,11.02973298,1947.7,1947.3,11.01292685]
[1772941226083,5.68697299,1947.6,1947.3,11.01292685]
[1772941227882,0.42486944,1947.7,1947.3,11.01292685]
[1772941228284,3.75621127,1947.5,1947.3,11.01292685]
[1772941228485,5.4287872,1947.7,1947.3,11.01292685]
[1772941228784,11.02973298,1947.8,1947.3,11.01292685]
[1772941229084,5.53343797,1947.7,1947.3,11.01292685]
[1772941229487,11.02973298,1948.0,1947.5,11.00683561]
[1772941229682,5.53343797,1947.6,1947.5,11.00683561]
[1772941229883,5.34328996,1947.7,1947.5,11.00683561]
[1772941230082,11.02973298,1947.8,1947.5,11.00683561]
[1772941230282,5.37120297,1947.6,1947.5,11.00683561]
[1772941230584,1.27088099,1947.7,1947.5,11.00683561]
[1772941230788,11.02973298,1947.8,1947.5,11.00683561]
[1772941230983,5.37120297,1947.7,1947.5,11.00683561]
[1772941232290,12.15520566,1947.9,1947.5,11.00683561]
[1772941232583,5.37120297,1947.8,1947.5,11.00683561]
[1772941232985,11.83384631,1948.0,1947.5,11.00683561]
[1772941233386,1.04904492,1947.9,1947.5,11.00683561]
[1772941233990,12.88289123,1947.9,1947.5,11.00683561]
[1772941234391,11.83384631,1947.9,1947.5,11.00683561]
[1772941234686,0.92200526,1947.8,1947.5,11.00683561]
[1772941235391,11.83384631,1948.0,1947.5,11.00683561]
[1772941235790,0.90212022,1947.9,1947.5,11.00683561]
[1772941235992,12.73596653,1947.9,1947.5,11.00683561]
[1772941236392,11.83384631,1947.9,1947.5,11.00683561]
[1772941236793,0.90212022,1947.8,1947.5,11.00683561]
[1772941237695,11.83384631,1947.9,1947.5,11.00683561]
[1772941238096,2.26836643,1947.8,1947.5,11.00683561]
[1772941239999,11.83384631,1948.0,1947.5,11.00683561]
[1772941240394,1.05562486,1947.9,1947.5,11.00683561]
[1772941243499,11.83384631,1948.5,1947.9,10.74867142]
[1772941243699,11.83384631,1948.3,1947.9,10.74867142]
[1772941243900,5.80118423,1948.0,1947.9,10.74867142]
[1772941244101,11.83384631,1948.2,1947.9,10.74867142]
[1772941244501,5.67286618,1948.1,1947.9,10.74867142]
[1772941254303,13.43,1948.3,1947.9,10.74867142]
[1772941254509,25.26384631,1948.3,1947.9,10.74867142]
[1772941254710,5.47697734,1948.0,1947.9,10.74867142]
[1772941255009,11.83384631,1948.2,1947.9,10.74867142]
[1772941255409,14.68517041,1948.2,1947.9,10.74867142]
[1772941259613,14.68517041,1948.2,1947.8,10.74867142]
[1772941263110,2.8513241,1948.2,1947.8,10.74867142]
[1772941263916,14.09215683,1948.2,1947.8,10.74867142]
[1772941265613,2.8513241,1948.2,1947.8,10.74867142]
[1772941266019,24.77983273,1948.4,1947.8,10.74867142]
[1772941266316,2.40622384,1948.3,1947.8,10.74867142]
[1772941266518,13.64705657,1948.3,1947.8,10.74867142]
[1772941282328,2.40622384,1948.3,1947.8,10.74867142]
[1772941282827,13.64705657,1948.3,1947.8,10.74867142]
[1772941291533,11.24083273,1948.4,1947.8,10.74867142]
[1772941291832,13.95945678,1948.4,1947.8,10.74867142]
[1772941294637,10.51348313,1948.6,1947.8,10.74867142]
[1772941294833,11.91161924,1948.7,1948.0,10.40649628]
[1772941295034,2.02718089,1948.6,1948.1,10.40649628]
[1772941298833,12.54066402,1948.6,1948.1,10.40649628]
[1772941302834,10.51821947,1948.8,1948.1,10.40649628]
[1772941303144,2.92012609,1948.7,1948.1,10.40649628]
[1772941304344,10.51821947,1948.8,1948.1,10.40649628]
[1772941304844,0.34128809,1948.7,1948.1,10.40649628]
[1772941307341,10.51348313,1949.3,1948.3,10.40649628]
[1772941307644,0.46765704,1949.0,1948.3,10.40649628]
[1772941307846,10.98114017,1949.0,1948.3,10.40649628]
[1772941308038,10.51348313,1949.0,1948.3,10.40649628]
[1772941308243,10.51348313,1949.0,1948.3,10.64449628]
[1772941308441,10.51777782,1949.0,1948.3,10.64449628]
[1772941311343,0.00429469,1949.0,1948.3,10.64449628]
[1772941311743,10.51777782,1949.0,1948.3,10.64449628]
[1772941312350,10.51348313,1948.8,1948.3,10.64449628]
[1772941312649,10.51348313,1948.6,1948.3,10.40649628]
[1772941313950,10.51348313,1948.7,1948.3,10.40649628]
[1772941319554,10.51348313,1948.9,1948.3,10.40649628]
[1772941319950,10.51348313,1948.8,1948.3,10.40649628]
[1772941320255,5.92316533,1948.7,1948.3,10.40649628]
[1772941321162,15.78627776,1948.7,1948.3,10.40649628]
[1772941321856,5.92316533,1948.7,1948.3,10.40649628]
[1772941322057,15.78627776,1948.7,1948.3,10.40649628]
[1772941323257,5.92316533,1948.7,1948.3,10.40649628]
[1772941326955,1.4333996,1948.5,1947.9,29.15996235]
[1772941327159,1.4333996,1948.5,1947.4,18.74641875]
[1772941327160,1.4333996,1948.3,1947.4,10.27770971]
[1772941327356,1.4333996,1948.1,1947.2,10.27770971]
[1772941327551,1.4333996,1947.9,1947.2,10.27770971]
[1772941327751,1.4333996,1947.9,1947.1,10.27961454]
[1772941328058,5.48750781,1947.8,1947.0,10.27961454]
[1772941328257,1.76955351,1947.6,1946.9,10.27961454]
[1772941328660,1.76955351,1947.4,1946.9,10.27961454]
[1772941328960,7.03278279,1947.3,1946.9,10.27961454]
[1772941329161,7.03278279,1947.3,1946.9,10.2846604]
[1772941329360,1.48500607,1947.3,1946.9,10.2846604]
[1772941334262,1.12177159,1947.1,1946.9,0.00504586]
[1772941334463,6.74206362,1947.2,1946.9,0.00504586]
[1772941334759,1.07664141,1947.2,1946.9,10.49614358]
[1772941337053,0.00535324,1947.5,1947.1,10.49022]
[1772941337362,5.96285149,1947.4,1947.2,11.9236196]
[1772941337558,5.96285149,1947.4,1947.2,10.49022]
[1772941337758,6.38432405,1947.5,1947.2,10.49022]
[1772941337959,0.88994807,1947.5,1947.2,10.49022]
[1772941338155,5.96285149,1947.4,1947.2,10.49022]
[1772941338964,0.00659743,1947.5,1947.2,11.9236196]
[1772941339167,0.97939841,1947.7,1947.2,11.9236196]
[1772941339365,5.76947247,1947.4,1947.2,11.9236196]
[1772941339665,6.49811971,1947.6,1947.2,10.49022]
[1772941339864,0.93449268,1947.6,1947.2,10.49022]
[1772941340067,0.9396969,1947.6,1947.2,10.49022]
[1772941340265,6.49586845,1947.5,1947.2,10.49022]
[1772941342569,1.64312474,1947.4,1947.0,10.4098232]
[1772941342869,1.64075616,1947.2,1946.9,10.41605335]
[1772941343270,5.67339414,1947.1,1946.9,10.40945592]
[1772941343766,5.67339414,1947.1,1946.0,1.4333996]
[1772941343767,1.80775145,1947.0,1946.5,10.30380191]
[1772941343968,1.80775145,1947.0,1946.3,10.30380191]
[1772941344168,1.80775145,1946.8,1946.3,10.30834162]
[1772941344371,7.37991537,1946.9,1946.3,10.30834162]
[1772941344669,0.2738365,1946.7,1946.3,10.30834162]
[1772941344871,7.50286072,1946.8,1946.3,10.30834162]
[1772941345372,1.77441968,1946.8,1946.3,10.30834162]
[1772941345564,5.72522556,1946.7,1946.3,10.30834162]
[1772941346471,5.72522556,1946.7,1946.5,10.34551285]
[1772941347872,1.77441968,1946.8,1946.5,10.34551285]
[1772941348070,5.35060147,1946.6,1946.5,10.34551285]
[1772941348272,1.77441968,1946.8,1946.5,10.34551285]
[1772941348576,5.70231483,1946.7,1946.5,10.34551285]
[1772941348779,1.77441968,1946.8,1946.5,10.34551285]
[1772941349073,0.61872689,1946.6,1946.5,10.34551285]
[1772941349376,0.49968223,1946.7,1946.5,10.34551285]
[1772941350274,1.77441968,1946.8,1946.5,10.34551285]
[1772941351878,3.0138309,1947.4,1946.5,10.34551285]
[1772941354681,2.83995583,1947.2,1946.4,12.46537356]
[1772941355380,2.78542167,1947.0,1946.4,12.46537356]
[1772941357182,2.74023233,1946.8,1946.4,12.46537356]
[1772941357578,0.083,1946.7,1946.4,12.46537356]
[1772941358685,2.74023233,1946.8,1946.4,12.46537356]
[1772941358983,5.93011746,1946.6,1946.4,12.46537356]
[1772941359185,2.74023233,1946.8,1946.4,12.46537356]
[1772941359385,2.46620522,1947.4,1946.4,12.46537356]
[1772941359685,3.32616245,1946.6,1946.4,12.46537356]
[1772941359882,2.46620522,1946.9,1946.4,12.46537356]
[1772941360385,0.26484594,1946.8,1946.4,12.46537356]
[1772941361281,3.45682588,1947.0,1946.4,12.46537356]
[1772941361482,5.69253985,1946.7,1946.4,12.46537356]
[1772941361683,5.36657641,1946.9,1946.4,12.46537356]
[1772941361882,3.40437106,1946.9,1946.4,12.46537356]
[1772941362082,9.09691091,1946.9,1946.4,12.46537356]
[1772941362485,3.40437106,1946.9,1946.4,12.46537356]
[1772941362784,5.41740727,1946.8,1946.4,12.46537356]
[1772941364389,4.13049612,1947.0,1946.4,12.46537356]
[1772941364688,1.01712147,1946.9,1946.4,12.46537356]
[1772941368196,3.939451,1947.2,1946.8,1.4333996]
[1772941368494,5.65492524,1946.9,1946.8,11.03197396]
[1772941368795,9.53501663,1947.1,1946.8,11.03197396]
[1772941368995,3.88009139,1947.1,1946.8,11.03197396]
[1772941369190,5.65492524,1946.9,1946.8,11.03197396]
[1772941369392,5.65492524,1947.0,1946.8,11.03197396]
[1772941369694,0.73728873,1946.9,1946.8,11.03197396]
[1772941369889,5.68409818,1947.0,1946.8,11.03197396]
[1772941370090,4.54879493,1946.9,1946.8,11.03197396]
[1772941370293,3.88009139,1947.1,1946.8,11.03197396]
[1772941370492,5.68409818,1947.0,1946.8,11.03197396]
[1772941370692,3.88009139,1947.1,1946.8,11.03197396]
[1772941370894,5.92831463,1947.0,1946.8,11.03197396]
[1772941374896,4.86208983,1947.4,1946.8,11.03197396]
[1772941375094,4.86208983,1947.4,1946.8,12.46537356]
[1772941375299,5.21597313,1947.5,1946.8,12.46537356]
[1772941376502,5.74152318,1947.4,1946.8,12.46537356]
[1772941376801,5.25802162,1947.4,1946.8,12.46537356]
[1772941377305,5.73873352,1947.3,1946.8,12.46537356]
[1772941377701,5.25523196,1947.3,1946.8,12.46537356]
[1772941380800,5.18342333,1947.4,1946.8,12.46537356]
[1772941380996,5.18862755,1947.6,1946.8,12.46537356]
[1772941381406,0.00520422,1947.6,1947.1,12.16840961]
[1772941383310,6.73890667,1947.6,1947.1,12.16840961]
[1772941383505,0.73132064,1947.5,1947.1,12.16840961]
[1772941390911,0.00520422,1947.6,1947.1,12.16840961]
[1772941391112,6.51473598,1947.9,1947.1,13.60352636]
[1772941391311,6.5199402,1948.0,1947.1,13.60352636]
[1772941392112,6.52577766,1948.0,1947.1,13.60352636]
[1772941392810,0.00583746,1948.0,1947.1,13.60352636]
[1772941397311,6.28722359,1948.3,1947.5,12.30165934]
[1772941398310,6.29094777,1948.3,1947.5,12.30165934]
[1772941402021,7.38970233,1948.7,1947.8,12.30165934]
[1772941403120,7.38970233,1948.7,1947.8,12.30780718]
[1772941405023,1.39005557,1948.7,1947.8,12.30780718]
[1772941409326,5.58736044,1948.6,1947.8,12.30780718]
[1772941412829,0.1261968,1948.6,1947.8,12.30780718]
[1772941415926,0.1261968,1948.6,1947.8,12.54580718]
[1772941416130,10.59806297,1948.9,1948.1,11.1943292]
[1772941416528,10.54026483,1948.7,1948.1,11.1943292]
[1772941416730,10.54026483,1948.7,1948.1,10.74950706]
[1772941417329,16.85198565,1948.6,1948.1,10.74950706]
[1772941417728,10.96287992,1948.6,1948.1,10.74950706]
[1772941420736,10.98337364,1948.4,1947.9,11.1943292]
[1772941422937,10.98337364,1949.3,1947.9,11.1943292]
[1772941423237,10.98337364,1949.2,1947.9,11.1943292]
[1772941423735,10.98337364,1949.0,1947.9,11.1943292]
[1772941424038,10.98337364,1948.8,1947.9,11.1943292]
[1772941424437,10.98337364,1948.6,1947.9,11.1943292]
[1772941425038,16.47111868,1948.5,1947.9,11.1943292]
[1772941425335,10.98337364,1948.5,1947.9,11.1943292]
[1772941425737,16.59874199,1948.4,1947.9,11.1943292]
[1772941426135,10.98337364,1948.4,1947.9,11.1943292]
[1772941444458,10.98337364,1948.4,1948.1,10.64802472]
[1772941444854,10.98337364,1948.4,1948.0,1.43371982]
[1772941445059,10.24422972,1948.2,1947.8,10.65417256]
[1772941453460,10.24422972,1948.2,1947.6,10.64802472]
[1772941453762,9.09698602,1948.0,1947.6,10.64802472]
[1772941454159,5.51802924,1947.9,1947.6,10.64802472]
[1772941454364,14.4701555,1947.9,1947.6,10.64802472]
[1772941454564,14.47502888,1947.9,1947.6,10.65429306]
[1772941457562,5.52290262,1947.9,1947.6,10.65429306]
[1772941457758,8.66533916,1948.5,1947.6,10.65429306]
[1772941458067,5.83338797,1947.9,1947.6,10.65429306]
[1772941458467,8.66533916,1948.0,1947.6,10.65429306]
[1772941458768,5.35798886,1947.9,1947.6,10.65429306]
[1772941462972,0.41998448,1947.9,1947.6,10.65429306]
[1772941463168,10.65952842,1948.5,1947.8,10.64802472]
[1772941463471,10.65952842,1948.4,1947.8,10.64802472]
[1772941464068,5.44755814,1948.3,1947.8,10.64802472]
[1772941464264,10.65952842,1948.2,1947.7,12.08174454]
[1772941464572,10.65952842,1948.2,1947.7,10.64802472]
[1772941465072,10.65952842,1948.2,1947.7,12.08174454]
[1772941465473,10.65952842,1948.6,1947.7,12.08174454]
[1772941465873,10.65952842,1948.5,1947.7,12.08174454]
[1772941466269,11.76468441,1948.4,1947.7,12.08174454]
[1772941466672,10.65952842,1948.4,1947.7,12.08174454]
[1772941466875,5.62629904,1948.3,1947.7,12.08174454]
[1772941467376,5.62629904,1948.3,1948.0,10.64802472]
[1772941469472,3.94914576,1948.3,1948.0,10.64802472]
[1772941472582,10.26109261,1948.7,1948.0,10.64802472]
[1772941472983,5.89661319,1948.4,1948.0,10.64802472]
[1772941475586,5.89661319,1948.4,1948.2,10.53866445]
[1772941479789,16.1577058,1948.4,1948.2,10.53866445]
[1772941479983,5.89661319,1948.4,1948.2,10.53866445]
[1772941483892,16.1577058,1948.4,1948.2,10.53866445]
[1772941484089,5.89661319,1948.4,1948.2,10.53866445]
[1772941484695,16.1577058,1948.4,1948.0,10.53866445]
[1772941485593,10.26109261,1948.3,1948.0,10.53866445]
[1772941486192,10.26109261,1948.8,1948.0,10.53866445]
[1772941486596,10.26109261,1948.7,1948.0,10.53866445]
[1772941486896,5.81669123,1948.6,1948.0,10.53866445]
[1772941487992,10.26109261,1948.5,1948.0,10.53866445]
[1772941488398,15.61865811,1948.4,1948.0,10.53866445]
[1772941488789,10.26109261,1948.4,1948.0,10.53866445]
[1772941488998,5.38700048,1948.3,1948.0,10.53866445]
[1772941489998,15.64809309,1948.3,1948.0,10.53866445]
[1772941490298,5.38700048,1948.3,1948.0,10.53866445]
[1772941494099,15.64809309,1948.3,1948.0,10.53866445]
[1772941494302,5.38700048,1948.3,1948.0,10.53866445]
[1772941500708,10.26109261,1948.2,1947.7,10.77666445]
[1772941501105,10.01059634,1948.0,1947.7,10.53866445]
[1772941501306,10.01059634,1948.0,1947.6,9.8863885]
[1772941501506,15.52278903,1947.9,1947.6,9.8863885]
[1772941501702,5.51219269,1947.9,1947.6,9.8863885]
[1772941501906,10.01059634,1948.5,1947.9,9.88012016]
[1772941502402,5.49383301,1948.2,1947.9,9.88012016]
[1772941502709,5.49383301,1948.1,1947.9,9.88012016]
[1772941502912,9.74169076,1948.5,1947.9,9.88012016]
[1772941503210,5.57897738,1948.3,1947.9,9.88012016]
[1772941503398,1.45187832,1948.3,1947.9,9.88012016]
[1772941503711,9.74169076,1948.5,1947.9,9.88012016]
[1772941504109,2.81301246,1948.4,1947.9,9.88012016]
[1772941504310,12.55470322,1948.4,1947.9,9.88012016]
[1772941504611,9.74169076,1948.4,1947.9,9.88012016]
[1772941504911,2.46039388,1948.3,1947.9,9.88012016]
[1772941516430,12.20208464,1948.3,1947.9,9.88012016]
[1772941516831,2.46039388,1948.3,1947.9,9.88012016]
[1772941518231,12.20208464,1948.3,1947.9,9.88012016]
[1772941518432,2.46039388,1948.3,1947.9,9.88012016]
[1772941519134,9.74169076,1948.2,1947.8,10.72501911]
[1772941519432,5.42826673,1948.1,1947.7,10.96301911]
[1772941519634,15.16995749,1948.1,1947.7,10.72501911]
[1772941519835,9.74169076,1948.0,1947.7,10.72501911]
[1772941520128,5.55174927,1948.6,1947.7,10.72501911]
[1772941520334,9.74169076,1948.5,1947.7,10.72501911]
[1772941520631,5.55174927,1948.0,1947.7,10.72501911]
[1772941520833,9.74169076,1948.2,1947.7,10.72501911]
[1772941521333,15.3743328,1948.1,1947.7,10.72501911]
[1772941521831,9.74169076,1948.1,1947.7,10.72501911]
[1772941522133,5.45245701,1948.0,1947.7,10.72501911]
[1772941524130,9.74169076,1948.9,1947.7,10.72501911]
[1772941524337,9.74169076,1948.7,1947.7,10.72501911]
[1772941524532,15.46163532,1948.7,1947.8,10.72501911]
[1772941524736,9.74169076,1948.6,1948.0,10.72501911]
[1772941524937,15.65024729,1948.6,1948.0,10.72501911]
[1772941525234,9.74169076,1948.5,1948.0,10.72501911]
[1772941525435,9.74169076,1948.4,1948.0,10.72501911]
[1772941526038,5.70414658,1948.3,1947.9,24.08538923]
[1772941526339,9.74169076,1948.2,1947.9,10.72501911]
[1772941526637,9.74169076,1948.3,1947.9,10.72501911]
[1772941550865,9.92390629,1949.1,1947.9,10.72501911]
[1772941551367,9.92390629,1949.0,1947.9,10.72501911]
[1772941551561,11.32452182,1949.0,1947.9,10.72501911]
[1772941551761,9.92390629,1948.8,1947.9,10.72501911]
[1772941552066,5.93724985,1948.7,1947.9,10.72501911]
[1772941552265,9.92390629,1948.6,1947.9,10.72501911]
[1772941552566,5.93724985,1948.5,1947.9,10.72501911]
[1772941552968,5.93724985,1948.5,1948.0,9.56593718]
[1772941554466,9.92390629,1948.8,1948.1,9.56593718]
[1772941554868,5.73047966,1948.5,1948.1,9.56593718]
[1772941555062,15.64728844,1948.7,1948.1,9.56593718]
[1772941555258,9.92390629,1948.7,1948.1,9.56593718]
[1772941555469,5.42372032,1948.6,1948.1,9.56593718]
[1772941555769,5.42372032,1948.6,1948.1,9.97124581]
[1772941557663,9.92390629,1948.7,1948.1,9.97124581]
[1772941557864,9.92390629,1948.9,1948.1,10.20924581]
[1772941558059,3.56748501,1948.6,1948.2,9.56593718]
[1772941558260,15.53878476,1948.9,1948.2,9.56593718]
[1772941558569,9.92390629,1948.9,1948.2,9.56593718]
[1772941558966,5.61487847,1948.8,1948.2,9.56593718]
[1772941562578,15.6327797,1948.8,1948.2,9.56593718]
[1772941562983,5.61487847,1948.8,1948.2,9.56593718]
[1772941563176,5.61487847,1948.8,1948.3,10.0988835]
[1772941563877,11.41851676,1949.0,1948.3,10.0988835]
[1772941564081,11.41851676,1949.0,1948.4,10.0988835]
[1772941564285,5.37668904,1948.9,1948.4,10.0988835]
[1772941564479,10.01790123,1949.7,1948.8,10.0988835]
[1772941564984,10.01790123,1949.4,1948.8,10.0988835]
[1772941565581,10.01790123,1949.2,1948.8,10.0988835]
[1772941566277,10.66273446,1949.1,1948.7,10.0988835]
[1772941566481,10.66273446,1949.1,1948.3,57.92674986]
[1772941566681,10.01790123,1948.9,1948.2,10.3368835]
[1772941566879,10.01790123,1948.9,1948.2,0.238]
[1772941567182,10.01790123,1948.7,1948.2,0.238]
[1772941567381,10.01790123,1948.7,1948.1,43.1508835]
[1772941567576,10.01790123,1948.5,1948.1,43.1508835]
[1772941568082,10.01790123,1948.5,1948.2,10.0988835]
[1772941568580,10.01790123,1948.5,1948.1,43.1508835]
[1772941573490,10.01790123,1948.5,1948.2,10.0988835]
[1772941573693,10.01790123,1948.9,1948.4,10.0988835]
[1772941573991,10.01790123,1948.8,1948.2,10.0988835]
[1772941574587,1.43249624,1949.2,1948.2,10.0988835]
[1772941574588,10.01790123,1948.6,1948.2,10.0988835]
[1772941578396,1.43249624,1949.2,1948.2,10.0988835]
[1772941578592,10.01790123,1949.1,1948.2,10.0988835]
[1772941578793,10.01790123,1949.0,1948.2,10.0988835]
[1772941579197,5.83502424,1948.9,1948.2,10.0988835]
[1772941579393,10.01790123,1948.8,1948.2,10.0988835]
[1772941579589,5.83502424,1948.9,1948.4,10.0988835]
[1772941580090,10.01790123,1948.8,1948.4,10.0988835]
[1772941580491,5.42563417,1948.7,1948.4,10.0988835]
[1772941580795,10.01790123,1948.9,1948.4,10.0988835]
[1772941581196,5.67697151,1948.8,1948.4,10.0988835]
[1772941581394,10.01790123,1949.0,1948.4,10.0988835]
[1772941581596,10.01790123,1949.0,1948.6,10.0988835]
[1772941581792,5.67697151,1948.9,1948.6,10.0988835]
[1772941582093,15.69487274,1948.9,1948.6,10.0988835]
[1772941583498,5.67697151,1948.9,1948.6,10.0988835]
[1772941584502,10.01790123,1949.2,1948.6,10.0988835]
[1772941584899,10.01790123,1949.0,1948.6,10.0988835]
[1772941590609,10.01790123,1948.8,1948.5,43.5858835]
[1772941591808,10.01790123,1948.8,1948.5,33.487]
[1772941593212,10.01790123,1948.8,1948.5,42.8689224]
[1772941599111,9.10829871,1949.0,1948.6,9.3819224]
[1772941599315,9.10829871,1949.0,1948.5,42.8689224]
[1772941599517,14.91901672,1948.9,1948.5,42.8689224]
[1772941599716,14.91901672,1948.9,1948.6,9.3819224]
[1772941599918,9.10829871,1948.9,1948.6,9.3819224]
[1772941603415,9.10829871,1948.9,1948.5,42.8689224]
[1772941603621,9.10829871,1948.9,1948.5,33.487]
[1772941603821,9.10829871,1948.9,1948.5,42.8689224]
[1772941605723,9.10829871,1948.9,1948.6,9.3819224]
[1772941612125,9.10829871,1948.9,1948.5,42.8689224]
[1772941612320,9.10829871,1948.7,1948.5,33.487]
[1772941615232,9.10829871,1949.2,1948.5,33.487]
[1772941615528,9.10829871,1949.1,1948.5,33.487]
[1772941615829,5.93781826,1949.0,1948.5,33.487]
[1772941616028,9.10829871,1948.9,1948.5,42.8689224]
[1772941616332,5.77999338,1948.8,1948.5,42.8689224]
[1772941616629,14.88829209,1948.8,1948.5,42.8689224]
[1772941616830,9.10829871,1948.7,1948.5,33.487]
[1772941617331,9.10829871,1949.2,1948.5,33.487]
[1772941617731,9.10829871,1949.1,1948.5,33.487]
[1772941618029,5.6073825,1949.0,1948.5,33.487]
[1772941618431,9.10829871,1948.9,1948.5,42.8689224]
[1772941618731,15.05013875,1948.8,1948.5,42.8689224]
[1772941619032,9.10829871,1948.8,1948.5,42.8689224]
[1772941621325,8.98256452,1949.4,1948.6,9.31705236]
[1772941621731,8.98256452,1949.1,1948.6,9.31705236]
[1772941622034,8.98256452,1948.9,1948.6,9.31705236]
[1772941622435,5.44191815,1948.8,1948.6,9.31705236]
[1772941623936,1.43249624,1949.7,1948.6,9.31705236]
[1772941624136,9.35153777,1949.6,1948.6,10.7495486]
[1772941624332,9.35153777,1949.3,1948.6,10.7495486]
[1772941624733,5.75863619,1949.2,1948.6,10.7495486]
[1772941624934,15.11017396,1949.2,1948.6,10.7495486]
[1772941625333,9.35153777,1949.2,1948.6,10.7495486]
[1772941625535,5.88160051,1949.1,1948.6,10.7495486]
[1772941625836,15.23313828,1949.1,1948.6,10.7495486]
[1772941626137,9.35153777,1949.1,1948.6,10.7495486]
[1772941626337,5.47031952,1949.0,1948.6,10.7495486]
[1772941626536,5.47031952,1949.0,1948.6,9.31705236]
[1772941627938,9.35153777,1949.2,1948.6,9.31705236]
[1772941628341,5.91539185,1949.0,1948.6,9.31705236]
[1772941628640,9.35153777,1949.2,1948.7,6.46581578]
[1772941629037,5.91539185,1949.1,1948.7,6.46581578]
[1772941629239,15.26692962,1949.1,1948.7,6.46581578]
[1772941630045,5.91539185,1949.1,1948.7,6.46581578]
[1772941631146,9.35153777,1949.3,1948.7,6.46581578]
[1772941632347,9.76947508,1949.2,1948.7,6.46581578]
[1772941632846,0.41793731,1949.1,1948.7,6.46581578]
[1772941633847,9.76947508,1949.1,1948.7,6.46581578]
[1772941634850,9.76947508,1949.1,1948.6,13.36037012]
[1772941635044,9.76947508,1949.1,1948.5,54.2539549]
[1772941635747,9.76947508,1949.1,1948.5,46.84737012]
[1772941636449,9.76947508,1949.1,1948.5,53.21275761]
[1772941636849,9.76947508,1949.1,1948.6,6.36844543]
[1772941638044,0.41793731,1949.1,1948.6,6.36844543]
[1772941638350,9.35153777,1949.3,1948.6,6.36844543]
[1772941638744,5.42317445,1949.1,1948.6,6.36844543]
[1772941638945,5.42317445,1949.2,1948.6,6.36844543]
[1772941639143,9.35153777,1949.3,1948.6,6.36844543]
[1772941639346,15.03205975,1949.2,1948.7,6.36465531]
[1772941639747,9.35153777,1949.2,1948.7,6.36465531]
[1772941639944,5.68052198,1949.1,1948.7,6.36465531]
[1772941640843,9.35153777,1949.2,1948.7,6.36465531]
[1772941642151,9.35153777,1949.9,1948.7,6.36465531]
[1772941642551,9.35153777,1949.8,1948.7,6.36465531]
[1772941642954,5.54226142,1949.7,1948.7,6.36465531]
[1772941643153,9.35153777,1949.6,1948.7,6.36465531]
[1772941643656,5.81232148,1949.5,1948.7,6.36465531]
[1772941643856,9.35153777,1949.4,1948.7,6.36465531]
[1772941644157,5.29176572,1949.3,1948.7,6.36465531]
[1772941644455,14.64330349,1949.3,1948.7,6.36465531]
[1772941645356,9.35153777,1949.2,1948.7,19.72502543]
[1772941645557,9.35153777,1949.2,1948.8,6.08692309]
[1772941647359,9.35153777,1949.2,1948.7,5.82015057]
[1772941647953,9.35153777,1949.2,1948.6,9.29366968]
[1772941648262,9.35153777,1949.0,1948.3,39.40527792]
[1772941648658,9.35153777,1948.8,1948.4,8.77631451]
[1772941653759,5.642326,1948.7,1948.3,33.607]
[1772941654061,8.79304772,1948.6,1948.3,42.75906225]
[1772941654363,1.43265185,1949.6,1948.4,9.15206225]
[1772941654562,8.79304772,1949.5,1948.4,9.15206225]
[1772941654859,8.79304772,1949.4,1948.4,9.15206225]
[1772941655263,5.82087127,1949.3,1948.4,9.15206225]
[1772941655463,8.79304772,1949.2,1948.4,9.15206225]
[1772941655862,5.66167807,1949.1,1948.4,9.15206225]
[1772941656064,8.79304772,1949.0,1948.4,9.15206225]
[1772941656365,5.38005253,1948.9,1948.4,9.15206225]
[1772941656763,8.79304772,1948.8,1948.4,9.15206225]
[1772941659559,1.43265185,1949.6,1948.4,9.15206225]
[1772941659766,8.79304772,1949.5,1948.4,9.15206225]
[1772941659957,8.79304772,1949.4,1948.4,9.15206225]